bitfinex/quotes_BTCUSD_20251114
["timestamp","ask_amount","ask_price","bid_price","bid_amount"]
[1763162947165,0.323,94579.0,94556.0,0.04341874]
[1763162947397,0.01942724,94578.0,94565.0,0.05645]
[1763162947625,0.01942724,94577.0,94566.0,0.02114925]
[1763162947830,0.01942724,94576.0,94567.0,0.08919]
[1763162948041,0.323,94579.0,94567.0,0.08919]
[1763162948042,0.01942724,94575.0,94568.0,0.04341874]
[1763162948270,0.01942724,94574.0,94568.0,0.04341874]
[1763162948474,0.01942724,94573.0,94570.0,0.04341874]
[1763162948718,0.00013528,94580.0,94579.0,0.10175]
[1763162948921,0.00013528,94580.0,94579.0,0.14516874]
[1763162949250,0.01956498,94580.0,94579.0,0.08871874]
[1763162950844,0.51216498,94580.0,94579.0,0.08871874]
[1763162951289,0.42736498,94580.0,94579.0,0.08871874]
[1763162952484,0.34256498,94580.0,94579.0,0.08871874]
[1763162953649,0.32313528,94580.0,94579.0,0.08871874]
[1763162954081,0.00013528,94580.0,94579.0,0.08871874]
[1763162955133,0.00013528,94580.0,94579.0,0.09759061]
[1763162955348,0.00013528,94580.0,94579.0,0.08871874]
[1763162955924,0.00013528,94580.0,94579.0,0.08705811]
[1763162956504,0.01673887,94580.0,94579.0,0.10633533]
[1763162956718,0.01673887,94580.0,94579.0,0.11696886]
[1763162957095,0.01673887,94580.0,94579.0,0.09769164]
[1763162957929,0.01673887,94580.0,94579.0,0.11245553]
[1763162958100,0.01673887,94580.0,94579.0,0.11883798]
[1763162958299,0.01673887,94580.0,94579.0,0.09769164]
[1763162958500,0.01673887,94580.0,94579.0,0.08705811]
[1763162960746,0.10153887,94580.0,94579.0,0.08705811]
[1763162961503,0.08493528,94580.0,94579.0,0.08705811]
[1763162961736,0.08493528,94580.0,94579.0,0.08805811]
[1763162964403,0.00013528,94580.0,94579.0,0.08805811]
[1763162965091,0.01673784,94580.0,94579.0,0.08805811]
[1763162965950,0.01673784,94580.0,94579.0,0.08656354]
[1763162967122,0.01673784,94580.0,94579.0,0.0431448]
[1763162967743,0.01673784,94580.0,94579.0,0.16606354]
[1763162968166,0.01673784,94580.0,94579.0,0.0431448]
[1763162968382,0.01682477,94580.0,94579.0,0.0431448]
[1763162968588,0.02527502,94580.0,94570.0,0.1258]
[1763162968796,0.02435324,94580.0,94579.0,0.001]
[1763162969422,0.07305784,94580.0,94579.0,0.001]
[1763162969830,0.01673784,94580.0,94579.0,0.001]
[1763162970685,0.01673784,94580.0,94577.0,0.04341874]
[1763162970885,0.323,94579.0,94571.0,0.04341874]
[1763162971549,0.323,94579.0,94573.0,0.04341874]
[1763162971550,0.00092178,94578.0,94573.0,0.04341874]
[1763162972210,0.00092178,94578.0,94575.0,0.04341874]
[1763162972425,0.323,94579.0,94575.0,0.04341874]
[1763162972645,0.01673784,94580.0,94577.0,0.04341874]
[1763162972867,0.01673784,94580.0,94579.0,0.04341874]
[1763162973086,0.01673784,94580.0,94579.0,0.08424874]
[1763162974015,0.00013528,94580.0,94579.0,0.08424874]
[1763162974431,0.00013528,94580.0,94579.0,0.10307006]
[1763162975069,0.00013528,94580.0,94579.0,0.10407006]
[1763162975496,0.00013528,94580.0,94579.0,0.08424874]
[1763162975891,0.00013528,94580.0,94579.0,0.08390363]
[1763162976974,0.01673535,94580.0,94579.0,0.08390363]
[1763162977405,0.01673535,94580.0,94579.0,0.09229399]
[1763162979067,0.01673535,94580.0,94579.0,0.08018797]
[1763162980782,0.18633535,94580.0,94579.0,0.08018797]
[1763162982370,0.10153535,94580.0,94579.0,0.08018797]
[1763162982597,0.01673535,94580.0,94579.0,0.08018797]
[1763162982810,0.01673535,94580.0,94579.0,0.09294395]
[1763162983452,0.00013528,94580.0,94579.0,0.24274395]
[1763162983662,0.00013528,94580.0,94579.0,0.22159761]
[1763162983839,0.00013528,94580.0,94579.0,0.22059761]
[1763162984089,0.00013528,94580.0,94579.0,0.24843027]
[1763162984515,0.00013671,94594.0,94580.0,0.01999998]
[1763162984719,0.323,94629.0,94594.0,0.04341874]
[1763162984923,0.03178839,94601.0,94596.0,0.07914874]
[1763162985338,0.03178839,94601.0,94598.0,0.04341874]
[1763162985759,0.01659759,94600.0,94599.0,0.12275874]
[1763162986174,0.01659759,94600.0,94599.0,0.04341874]
[1763162987476,0.323,94629.0,94608.0,0.0973]
[1763162987686,0.32345136,94629.0,94628.0,0.0973]
[1763162987898,0.34284039,94629.0,94628.0,0.0973]
[1763162988103,0.34284039,94629.0,94628.0,0.17664]
[1763162988309,0.37462878,94629.0,94628.0,0.17664]
[1763162988523,0.03223975,94629.0,94628.0,0.0973]
[1763162988726,0.03223975,94629.0,94628.0,0.04083]
[1763162990465,0.03223975,94629.0,94608.0,0.12017]
[1763162990466,0.35523975,94629.0,94608.0,0.12017]
[1763162990687,0.323,94619.0,94613.0,0.04341874]
[1763162993027,0.3306142,94622.0,94615.0,0.04341874]
[1763162993416,0.3306142,94622.0,94613.0,0.04341874]
[1763162993722,0.3306142,94622.0,94621.0,0.05647]
[1763162994155,0.36240259,94622.0,94621.0,0.05647]
[1763162994568,0.03178839,94622.0,94617.0,0.04341874]
[1763162996027,0.323,94619.0,94613.0,0.04341874]
[1763162996437,0.323,94619.0,94615.0,0.04341874]
[1763162996923,0.323,94619.0,94578.0,0.13788956]
[1763162996924,0.323,94579.0,94570.0,0.03804248]
[1763162997133,0.323,94559.0,94542.0,0.01449083]
[1763162997351,0.323,94559.0,94533.0,0.07934]
[1763162997562,0.05156746,94558.0,94533.0,0.07934]
[1763162997765,0.19750873,94540.0,94533.0,0.07934]
[1763162997980,0.19750873,94540.0,94528.0,0.04083]
[1763162998191,0.19750873,94540.0,94534.0,0.04096528]
[1763162998397,0.39750873,94540.0,94534.0,0.04096528]
[1763162999039,0.40999315,94540.0,94534.0,0.04096528]
[1763162999276,0.01248442,94540.0,94535.0,0.07934]
[1763162999504,0.00092645,94547.0,94535.0,0.07934]
[1763162999953,0.01366295,94547.0,94546.0,0.0973]
[1763163000195,0.0127365,94547.0,94546.0,0.04083]
[1763163000449,0.39750873,94580.0,94557.0,0.04341874]
[1763163000700,1.0859657,94600.0,94588.0,0.0747]
[1763163000918,1.2859657,94610.0,94599.0,0.05517]
[1763163001138,0.19750873,94580.0,94570.0,0.04213]
[1763163001373,0.80300051,94580.0,94570.0,0.04213]
[1763163001616,0.39750873,94570.0,94564.0,0.04213]
[1763163001824,0.323,94569.0,94564.0,0.04213]
[1763163002034,0.323,94569.0,94564.0,0.04226528]
[1763163003989,0.318,94569.0,94568.0,0.05517]
[1763163004201,0.60549178,94574.0,94568.0,0.05517]
[1763163005700,0.39750873,94570.0,94564.0,0.04326528]
[1763163005935,0.323,94569.0,94564.0,0.04326528]
[1763163006164,0.323,94569.0,94564.0,0.04226528]
[1763163006582,0.03180825,94568.0,94564.0,0.04226528]
[1763163007247,0.03180825,94568.0,94565.0,0.10092947]
[1763163007656,0.03180825,94568.0,94566.0,0.07978]
[1763163007931,0.03180825,94568.0,94567.0,0.02114902]
[1763163008385,0.03315825,94568.0,94564.0,0.00113528]
[1763163008592,0.19750873,94550.0,94542.0,0.04213]
[1763163008801,0.323,94549.0,94542.0,0.04213]
[1763163009441,0.323,94549.0,94544.0,0.04341874]
[1763163009659,0.323,94549.0,94546.0,0.04341874]
[1763163009878,7.627e-05,94550.0,94546.0,0.04341874]
[1763163010515,7.627e-05,94550.0,94545.0,0.07553]
[1763163010720,0.1696,94549.0,94545.0,0.07553]
[1763163011340,0.323,94548.0,94543.0,0.04341874]
[1763163011518,0.35481209,94548.0,94543.0,0.04341874]
[1763163011950,0.35481209,94548.0,94544.0,0.07553]
[1763163012573,0.03181209,94548.0,94546.0,0.04341874]
[1763163012782,7.627e-05,94550.0,94546.0,0.04341874]
[1763163012986,7.627e-05,94550.0,94547.0,0.07553]
[1763163013411,7.627e-05,94550.0,94520.0,0.33299999]
[1763163013412,0.00384,94547.0,94543.0,0.04341874]
[1763163013628,0.323,94539.0,94531.0,0.03908]
[1763163013836,0.323,94539.0,94526.0,0.07553]
[1763163013837,0.323,94539.0,94512.0,0.03908]
[1763163014050,0.323,94539.0,94526.0,0.07553]
[1763163014262,0.22932873,94530.0,94513.0,0.07553]
[1763163014468,0.22932873,94530.0,94515.0,0.008161]
[1763163014683,0.19750873,94530.0,94515.0,0.008161]
[1763163014890,0.19750873,94530.0,94515.0,0.07553]
[1763163015308,0.19750873,94530.0,94516.0,0.04341874]
[1763163015730,0.19750873,94530.0,94517.0,0.07553]
[1763163015969,0.39750873,94530.0,94517.0,0.07553]
[1763163016184,0.323,94529.0,94517.0,0.07553]
[1763163016399,0.19750873,94520.0,94514.0,0.04213]
[1763163017503,0.19750873,94520.0,94510.0,0.0004]
[1763163017504,0.02692,94515.0,94510.0,0.0004]
[1763163017729,0.0276,94501.0,94500.0,9.98378449]
[1763163018607,0.0442192,94501.0,94500.0,9.98378449]
[1763163019711,0.07606242,94501.0,94500.0,9.98378449]
[1763163020794,0.56874242,94501.0,94500.0,9.98378449]
[1763163021483,0.48390242,94501.0,94500.0,9.98378449]
[1763163021692,0.39906242,94501.0,94500.0,9.98378449]
[1763163022592,0.38244322,94501.0,94500.0,9.96716324]
[1763163023639,0.39906444,94501.0,94500.0,9.96716324]
[1763163024280,0.39906444,94501.0,94500.0,9.26716324]
[1763163024484,0.39906444,94501.0,94500.0,9.21387324]
[1763163024696,0.41821695,94501.0,94500.0,9.21387324]
[1763163025200,0.91821695,94501.0,94500.0,9.21387324]
[1763163025842,0.91921695,94501.0,94500.0,9.21387324]
[1763163026047,0.9212499,94501.0,94500.0,9.19725102]
[1763163026261,0.40462868,94501.0,94500.0,9.19725102]
[1763163026487,0.40363951,94501.0,94500.0,9.19725102]
[1763163026701,0.40463951,94501.0,94500.0,9.19725102]
[1763163026912,0.40260656,94501.0,94500.0,9.19725102]
[1763163027116,0.38344322,94501.0,94500.0,9.19725102]
[1763163029269,0.40006426,94501.0,94500.0,9.19725102]
[1763163029898,0.39906426,94501.0,94500.0,9.19725102]
[1763163030107,0.40006426,94501.0,94500.0,9.19725102]
[1763163030797,0.56982426,94501.0,94500.0,9.19725102]
[1763163031203,0.24055104,94501.0,94500.0,9.19725102]
[1763163031418,0.27239105,94501.0,94500.0,9.19725102]
[1763163032052,0.18751105,94501.0,94500.0,9.19725102]
[1763163032266,0.19017005,94501.0,94500.0,9.19725102]
[1763163032492,0.10529005,94501.0,94500.0,9.19725102]
[1763163032700,0.10962194,94501.0,94500.0,9.19725102]
[1763163032929,0.12877363,94501.0,94500.0,9.19725102]
[1763163033165,0.12877363,94501.0,94500.0,9.19705356]
[1763163033166,0.45177363,94501.0,94500.0,9.19705356]
[1763163033396,0.44913277,94501.0,94500.0,9.19359188]
[1763163033611,0.44913277,94501.0,94500.0,9.18545522]
[1763163033820,0.41729276,94501.0,94500.0,9.18545522]
[1763163034035,0.41729276,94501.0,94500.0,9.1788277]
[1763163034273,0.9607115,94501.0,94500.0,9.17515288]
[1763163034490,0.9597115,94501.0,94500.0,9.17515288]
[1763163034709,0.95861503,94501.0,94500.0,9.17515288]
[1763163034992,0.96004992,94501.0,94500.0,9.17515288]
[1763163035212,0.91663118,94501.0,94500.0,9.17376055]
[1763163035864,0.91563118,94501.0,94500.0,9.17376055]
[1763163036295,0.91772765,94501.0,94500.0,9.17376055]
[1763163036506,0.96004992,94501.0,94500.0,9.17376055]
[1763163036714,0.96880078,94501.0,94500.0,9.17376055]
[1763163036928,0.92538204,94501.0,94500.0,9.17376055]
[1763163037140,0.01762104,94501.0,94500.0,9.27742993]
[1763163037582,0.01662104,94501.0,94500.0,9.17376055]
[1763163038022,0.02028004,94501.0,94500.0,9.17376055]
[1763163038230,0.001,94501.0,94500.0,9.17376055]
[1763163038441,0.07722,94509.0,94500.0,9.17376055]
[1763163038653,0.079879,94509.0,94500.0,9.17376055]
[1763163038861,0.402879,94509.0,94500.0,9.17376055]
[1763163039070,0.40022,94509.0,94500.0,9.17376055]
[1763163039348,0.05317,94501.0,94500.0,9.17376055]
[1763163040287,0.07239082,94501.0,94500.0,9.17376055]
[1763163040742,0.24215082,94501.0,94500.0,9.17376055]
[1763163040950,0.15727082,94501.0,94500.0,9.17376055]
[1763163041382,0.1738933,94501.0,94500.0,9.17376055]
[1763163041596,0.1738933,94501.0,94500.0,9.15713807]
[1763163041827,0.15827082,94501.0,94500.0,9.15713807]
[1763163042291,0.07339082,94501.0,94500.0,9.15713807]
[1763163042770,0.09001357,94501.0,94500.0,9.15713807]
[1763163043222,0.45643231,94501.0,94500.0,8.82514049]
[1763163043446,0.46795984,94501.0,94500.0,8.82505249]
[1763163043655,0.41692581,94501.0,94500.0,8.82505249]
[1763163043863,0.41301357,94501.0,94500.0,8.82505249]
[1763163044107,0.41201357,94501.0,94500.0,8.82505249]
[1763163044321,0.4639075,94501.0,94500.0,8.49305491]
[1763163044567,0.46981974,94501.0,94500.0,8.47642986]
[1763163044813,0.45319699,94501.0,94500.0,8.47642986]
[1763163045069,0.45131407,94501.0,94500.0,8.47642986]
[1763163045323,0.95245417,94501.0,94500.0,8.14443228]
[1763163045792,0.95131407,94501.0,94500.0,8.14443228]
[1763163046000,0.95131407,94501.0,94500.0,8.14423488]
[1763163046216,0.95131407,94501.0,94500.0,7.8122373]
[1763163046435,0.95131407,94501.0,94500.0,7.63542695]
[1763163046946,0.95131407,94501.0,94500.0,6.52442695]
[1763163047192,0.95331407,94501.0,94500.0,5.91497105]
[1763163047436,0.95331407,94501.0,94500.0,5.51070793]
[1763163047673,0.95131407,94501.0,94500.0,5.49407953]
[1763163047886,0.95131407,94501.0,94500.0,4.58507953]
[1763163048100,0.95143551,94501.0,94500.0,3.37307953]
[1763163048311,0.95152746,94501.0,94500.0,2.56162363]
[1763163048529,0.95152746,94501.0,94500.0,1.75362363]
[1763163049392,0.95152746,94501.0,94500.0,1.42162605]
[1763163050247,0.95152746,94501.0,94500.0,1.08962847]
[1763163050744,1.20628746,94501.0,94500.0,1.07300018]
[1763163050959,0.95152746,94501.0,94500.0,0.15989238]
[1763163051179,0.36641874,94479.0,94470.0,0.0004]
[1763163051386,0.00057,94471.0,94470.0,0.0008482]
[1763163051597,0.04341874,94470.0,94390.0,0.07744]
[1763163051816,0.07300915,94470.0,94469.0,76.51484526]
[1763163052051,0.01972003,94470.0,94469.0,76.51484526]
[1763163052265,0.09227877,94470.0,94469.0,76.51484526]
[1763163053268,0.91527877,94470.0,94469.0,76.51484526]
[1763163053846,0.54886003,94470.0,94469.0,76.51484526]
[1763163054275,0.04886003,94470.0,94469.0,76.51484526]
[1763163054894,0.01972003,94470.0,94469.0,76.51484526]
[1763163055135,0.01972003,94470.0,94469.0,76.51371747]
[1763163055329,0.02372003,94470.0,94469.0,76.51371747]
[1763163055581,0.04886003,94470.0,94469.0,76.51371747]
[1763163056028,0.05086003,94470.0,94469.0,76.51371747]
[1763163056230,0.02172003,94470.0,94469.0,76.51371747]
[1763163056913,0.02171141,94470.0,94469.0,76.51371747]
[1763163057163,0.00245041,94470.0,94469.0,76.55307747]
[1763163057405,0.00245041,94470.0,94469.0,76.59555961]
[1763163057628,0.00245041,94470.0,94469.0,76.55107747]
[1763163058810,0.00045041,94470.0,94469.0,76.55107747]
[1763163059026,0.00245041,94470.0,94469.0,76.55107747]
[1763163059238,0.00245041,94470.0,94469.0,76.59249621]
[1763163059927,0.00045041,94470.0,94469.0,76.59249621]
[1763163060146,0.00145041,94470.0,94469.0,76.66413481]
[1763163060628,0.00145041,94470.0,94469.0,76.59249621]
[1763163060877,0.17129041,94470.0,94469.0,76.59249621]
[1763163061100,0.17129041,94470.0,94469.0,76.59049621]
[1763163061619,0.17129041,94470.0,94469.0,76.50771747]
[1763163061620,0.00199041,94470.0,94469.0,76.50771747]
[1763163061833,0.02125103,94470.0,94469.0,76.50771747]
[1763163062511,0.02025103,94470.0,94469.0,76.50771747]
[1763163062720,0.02125103,94470.0,94469.0,76.50771747]
[1763163062930,0.02025103,94470.0,94469.0,76.50771747]
[1763163063835,0.02225103,94470.0,94469.0,76.50771747]
[1763163064722,0.02171103,94470.0,94469.0,76.50571747]
[1763163064942,0.00245041,94470.0,94469.0,76.55254747]
[1763163065153,0.00245041,94470.0,94469.0,76.55148572]
[1763163065363,0.00045041,94470.0,94469.0,76.55148572]
[1763163065794,0.00245041,94470.0,94469.0,76.55148572]
[1763163066029,0.01707477,94470.0,94469.0,76.55148572]
[1763163066250,0.00045041,94470.0,94469.0,76.55148572]
[1763163066463,0.00145041,94470.0,94469.0,76.55148572]
[1763163066664,0.00045041,94470.0,94469.0,76.55148572]
[1763163067083,0.00145041,94470.0,94469.0,76.55148572]
[1763163067305,0.00145041,94470.0,94469.0,76.69857384]
[1763163068159,0.00145041,94470.0,94469.0,76.68948551]
[1763163068585,0.00045041,94470.0,94469.0,76.68948551]
[1763163070753,0.17029041,94470.0,94469.0,76.68948551]
[1763163070957,0.08537041,94470.0,94469.0,76.68948551]
[1763163071604,0.00045041,94470.0,94469.0,76.68948551]
[1763163072010,0.00045041,94470.0,94469.0,76.58681613]
[1763163072987,0.00045041,94470.0,94469.0,76.54239739]
[1763163073210,0.00045041,94470.0,94469.0,76.49556739]
[1763163075457,0.00145041,94470.0,94469.0,76.49556739]
[1763163075663,0.00145041,94470.0,94469.0,76.53898613]
[1763163075886,0.00145041,94470.0,94469.0,76.64265551]
[1763163077504,0.00045041,94470.0,94469.0,76.64265551]
[1763163078511,0.00045041,94470.0,94469.0,76.53998613]
[1763163080730,0.17021041,94470.0,94469.0,76.53998613]
[1763163081318,0.17021041,94470.0,94469.0,76.53898613]
[1763163081566,0.17021041,94470.0,94469.0,76.53998613]
[1763163082855,0.08533041,94470.0,94469.0,76.53998613]
[1763163083495,0.08533041,94470.0,94469.0,76.64365551]
[1763163084570,0.00045041,94470.0,94469.0,76.53998613]
[1763163086462,0.00045041,94470.0,94469.0,76.86298613]
[1763163087120,0.00045041,94470.0,94469.0,76.97458613]
[1763163087328,0.00045041,94470.0,94469.0,76.97358613]
[1763163087777,0.01019999,94570.0,94521.0,0.04341874]
[1763163087778,0.2,94550.0,94521.0,0.04341874]
[1763163087988,0.19764396,94550.0,94540.0,0.89054447]
[1763163088202,0.00013523,94550.0,94549.0,0.04513]
[1763163088425,0.00013523,94550.0,94549.0,0.10791]
[1763163088631,0.00013523,94550.0,94549.0,0.04513]
[1763163089886,0.00013523,94550.0,94549.0,0.08854874]
[1763163090451,0.00113523,94550.0,94549.0,0.08854874]
[1763163090628,0.17089523,94550.0,94549.0,0.08854874]
[1763163090841,0.17089523,94550.0,94549.0,0.17311874]
[1763163091040,0.16989523,94550.0,94549.0,0.17311874]
[1763163091352,0.16989523,94550.0,94549.0,0.08854874]
[1763163091566,0.17089523,94550.0,94549.0,0.08854874]
[1763163091978,0.16989523,94550.0,94549.0,0.08854874]
[1763163092593,0.17089523,94550.0,94549.0,0.08854874]
[1763163093261,0.00113523,94550.0,94549.0,0.08854874]
[1763163094941,0.00013523,94550.0,94549.0,0.08854874]
[1763163095418,0.00113523,94550.0,94549.0,0.08854874]
[1763163096959,0.0002,94600.0,94590.0,0.89054447]
[1763163097188,0.19750873,94610.0,94599.0,0.10385]
[1763163097401,0.00013534,94610.0,94601.0,0.04341874]
[1763163097605,0.00013534,94610.0,94609.0,0.10255874]
[1763163098049,0.00013534,94610.0,94609.0,0.04341874]
[1763163098669,0.00213534,94610.0,94609.0,0.04341874]
[1763163098882,0.00013534,94610.0,94609.0,0.04341874]
[1763163100159,0.00113534,94610.0,94609.0,0.04341874]
[1763163100582,0.00013534,94610.0,94609.0,0.04341874]
[1763163100787,0.17073534,94610.0,94609.0,0.04341874]
[1763163101435,0.323,94609.0,94599.0,0.04471]
[1763163101846,0.002659,94608.0,94599.0,0.04471]
[1763163102065,0.323,94609.0,94608.0,0.10255874]
[1763163102271,0.00113534,94610.0,94609.0,0.04341874]
[1763163102489,0.00113534,94610.0,94609.0,0.12798874]
[1763163102697,0.00113534,94610.0,94600.0,0.05341873]
[1763163102913,0.00113534,94610.0,94609.0,0.10255874]
[1763163103124,0.00013534,94610.0,94609.0,0.10255874]
[1763163103336,0.00013534,94610.0,94609.0,0.04241874]
[1763163109652,0.00013534,94610.0,94609.0,0.36541874]
[1763163110065,0.00013534,94610.0,94609.0,0.04241874]
[1763163110264,0.00013534,94610.0,94600.0,0.89054447]
[1763163110580,0.00013534,94610.0,94609.0,0.10385]
[1763163110801,0.16965534,94610.0,94609.0,0.14726874]
[1763163111310,0.16965534,94610.0,94609.0,0.10385]
[1763163111556,0.16965534,94610.0,94609.0,0.18842]
[1763163111737,0.00013534,94610.0,94609.0,0.08812874]
[1763163111952,0.00013534,94610.0,94609.0,0.04471]
[1763163112584,0.00013534,94610.0,94609.0,0.08812874]
[1763163118811,0.00013534,94610.0,94609.0,0.04471]
[1763163120146,0.00013534,94610.0,94609.0,0.08812874]
[1763163120757,0.16965534,94610.0,94609.0,0.08812874]
[1763163121245,0.08489534,94610.0,94609.0,0.08812874]
[1763163121450,0.00013534,94610.0,94609.0,0.04471]
[1763163122552,0.00013534,94610.0,94570.0,0.00999999]
[1763163122553,0.323,94609.0,94590.0,0.6949554]
[1763163122773,0.323,94609.0,94600.0,0.6949554]
[1763163122896,0.323,94609.0,94608.0,0.05765]
[1763163123101,0.00013534,94610.0,94608.0,0.05765]
[1763163123383,0.00013534,94610.0,94609.0,0.11107963]
[1763163124348,0.00013534,94610.0,94609.0,0.15449837]
[1763163124871,0.00013534,94610.0,94609.0,0.04341874]
[1763163125269,0.19764407,94610.0,94602.0,0.08994]
[1763163125506,0.19764407,94610.0,94603.0,0.04341874]
[1763163125736,0.323,94609.0,94594.0,0.08994]
[1763163126159,0.01935031,94608.0,94594.0,0.08994]
[1763163126364,0.01935031,94607.0,94594.0,0.08994]
[1763163126535,0.01935031,94606.0,94590.0,0.6050154]
[1763163126743,0.01935031,94605.0,94590.0,0.6050154]
[1763163126989,0.12418371,94609.0,94590.0,0.6050154]
[1763163127196,0.39764407,94610.0,94590.0,0.6050154]
[1763163127398,0.39764407,94610.0,94588.0,0.08994]
[1763163127602,0.19750873,94600.0,94592.0,0.04351]
[1763163128227,0.03916,94601.0,94583.0,0.04341874]
[1763163128228,0.19750873,94590.0,94583.0,0.04341874]
[1763163128974,0.323,94599.0,94583.0,0.11365722]
[1763163129177,0.19750873,94590.0,94583.0,0.04341874]
[1763163130294,0.19750873,94590.0,94582.0,0.04471]
[1763163130707,0.49252,94589.0,94582.0,0.04471]
[1763163131954,0.40776,94589.0,94582.0,0.04471]
[1763163132159,0.19750873,94570.0,94563.0,0.04229]
[1763163132371,0.323,94569.0,94563.0,0.04229]
[1763163133312,0.323,94559.0,94554.0,0.04229]
[1763163133526,0.323,94559.0,94555.0,0.04341874]
[1763163133740,0.323,94559.0,94555.0,0.12579874]
[1763163133955,0.323,94559.0,94557.0,0.04341874]
[1763163134375,0.323,94559.0,94558.0,0.12579874]
[1763163134809,0.323,94559.0,94558.0,0.04341874]
[1763163139477,0.323,94559.0,94554.0,0.04274144]
[1763163139711,0.323,94559.0,94555.0,0.04341874]
[1763163139929,0.323,94559.0,94555.0,0.08238]
[1763163140647,0.1696,94558.0,94555.0,0.08238]
[1763163141873,0.1696,94558.0,94554.0,0.04274144]
[1763163142071,0.323,94559.0,94554.0,0.00045144]
[1763163143578,0.01814,94555.0,94554.0,0.00045144]
[1763163143756,0.323,94559.0,94554.0,0.00045144]
[1763163145516,0.19750873,94570.0,94556.0,0.04341874]
[1763163145725,0.3361735,94579.0,94569.0,0.05634]
[1763163145929,0.323,94579.0,94578.0,0.08135]
[1763163146381,0.323,94579.0,94578.0,0.02501]
[1763163146594,0.39750873,94600.0,94587.0,0.05634]
[1763163146801,0.39750873,94600.0,94578.0,0.02501]
[1763163146802,0.19750873,94610.0,94590.0,0.6050154]
[1763163147007,0.39750873,94620.0,94609.0,0.09863]
[1763163147242,0.01300723,94617.0,94609.0,0.04229]
[1763163147465,0.323,94629.0,94619.0,0.05634]
[1763163147667,0.19750873,94630.0,94619.0,0.05634]
[1763163147867,0.00013537,94629.0,94619.0,0.05534]
[1763163148091,0.19750873,94620.0,94611.0,0.08238]
[1763163148529,0.323,94619.0,94611.0,0.08238]
[1763163149184,0.19750873,94620.0,94611.0,0.08238]
[1763163149392,0.323,94619.0,94611.0,0.08238]
[1763163150615,0.323,94619.0,94611.0,0.09394985]
[1763163150744,0.323,94617.0,94611.0,0.09394985]
[1763163150942,0.323,94617.0,94611.0,0.08238]
[1763163154069,0.323,94619.0,94611.0,0.08238]
[1763163157235,0.323,94609.0,94600.0,0.04229]
[1763163157868,0.323,94599.0,94593.0,0.04341874]
[1763163158283,0.323,94599.0,94594.0,0.08172]
[1763163159125,0.32313532,94599.0,94594.0,0.08172]
[1763163160804,0.16952,94598.0,94594.0,0.08172]
[1763163163043,0.08476,94598.0,94594.0,0.08172]
[1763163163258,0.32313532,94599.0,94594.0,0.08172]
[1763163164888,0.32313532,94599.0,94585.0,0.08172]
[1763163165088,0.323,94589.0,94560.0,0.00999999]
[1763163165325,0.323,94589.0,94540.0,0.323]
[1763163165326,0.323,94539.0,94530.0,0.04103]
[1763163165666,0.323,94539.0,94510.0,0.61541539]
[1763163165667,0.35175,94529.0,94523.0,0.04103]
[1763163165882,0.323,94519.0,94513.0,0.04103]
[1763163166321,0.323,94519.0,94514.0,0.10288088]
[1763163166508,0.323,94519.0,94515.0,0.04341874]
[1763163166737,0.19750873,94530.0,94523.0,0.05332]
[1763163166936,0.52050873,94540.0,94529.0,0.05332]
[1763163167117,0.01306599,94547.0,94539.0,0.05332]
[1763163167552,0.33578367,94549.0,94539.0,0.05332]
[1763163167958,0.19750873,94540.0,94532.0,0.08172]
[1763163168161,0.19750873,94540.0,94533.0,0.01682163]
[1763163168998,0.19750873,94540.0,94533.0,0.08172]
[1763163169124,0.19750873,94540.0,94534.0,0.01688988]
[1763163169330,0.19750873,94540.0,94533.0,0.08172]
[1763163170695,0.4078,94539.0,94534.0,0.01447414]
[1763163170910,0.323,94539.0,94536.0,0.04341874]
[1763163171135,0.6050154,94580.0,94545.0,0.05332]
[1763163171136,0.19750873,94560.0,94545.0,0.05332]
[1763163171365,0.19750873,94570.0,94550.0,0.04341874]
[1763163171580,0.21004349,94570.0,94559.0,0.09435]
[1763163171799,0.39750873,94580.0,94569.0,0.05332]
[1763163172006,0.39750873,94580.0,94578.0,0.02548]
[1763163172007,0.01270729,94580.0,94578.0,0.02548]
[1763163172230,0.002659,94589.0,94578.0,0.02548]
[1763163172481,0.00013527,94580.0,94578.0,0.02548]
[1763163173136,0.00013527,94580.0,94579.0,0.08893077]
[1763163173345,0.00013527,94580.0,94579.0,0.08172]
[1763163173546,0.00013527,94580.0,94578.0,0.02548]
[1763163174312,0.00013527,94580.0,94579.0,0.08172]
[1763163175032,0.00013527,94580.0,94579.0,0.12513874]
[1763163175447,0.00013527,94580.0,94579.0,0.04341874]
[1763163176647,0.00013527,94580.0,94579.0,0.04441874]
[1763163180662,0.16973527,94580.0,94579.0,0.04441874]
[1763163181694,0.00013527,94580.0,94579.0,0.001]
[1763163182299,0.00013527,94580.0,94572.0,0.02548]
[1763163182300,0.323,94579.0,94572.0,0.02548]
[1763163182515,0.323,94579.0,94572.0,0.10122]
[1763163184068,0.323,94579.0,94572.0,0.02548]
[1763163184485,0.323,94569.0,94564.0,0.07574]
[1763163184690,0.323,94569.0,94559.0,0.04103]
[1763163186934,0.323,94559.0,94554.0,0.04131]
[1763163188473,0.323,94559.0,94555.0,0.07574]
[1763163188678,0.323,94569.0,94555.0,0.07574]
[1763163189177,0.323,94569.0,94556.0,0.07574]
[1763163189549,0.323,94569.0,94557.0,0.02115126]
[1763163189718,0.323,94569.0,94557.0,0.01607999]
[1763163189919,0.323,94569.0,94558.0,0.07706]
[1763163190302,0.324,94569.0,94557.0,0.01607999]
[1763163190500,0.324,94569.0,94555.0,0.02004148]
[1763163190707,0.0848,94566.0,94555.0,0.02004148]
[1763163190900,0.323,94559.0,94554.0,0.04131]
[1763163191544,0.323,94559.0,94555.0,0.07706]
[1763163191886,0.0848,94558.0,94556.0,0.02115148]
[1763163192302,0.397644,94580.0,94565.0,0.05298]
[1763163192434,0.00013527,94580.0,94579.0,0.09032]
[1763163192998,0.00013527,94580.0,94579.0,0.03734]
[1763163194399,0.00013527,94580.0,94579.0,0.08075874]
[1763163195203,0.00013527,94580.0,94579.0,0.08175874]
[1763163195629,0.00013527,94580.0,94579.0,0.08075874]
[1763163195802,0.00013527,94580.0,94579.0,0.08175874]
[1763163196186,0.00013527,94580.0,94579.0,0.08075874]
[1763163196411,0.00013527,94580.0,94579.0,0.08175874]
[1763163196815,0.00013527,94580.0,94579.0,0.08993461]
[1763163197024,0.00013527,94580.0,94579.0,0.08175874]
[1763163199919,0.00013527,94580.0,94579.0,0.10290508]
[1763163200219,0.00013527,94580.0,94579.0,0.08175874]
[1763163200768,0.08493527,94580.0,94579.0,0.08175874]
[1763163200968,0.00013527,94580.0,94579.0,0.15881874]
[1763163201510,0.00013527,94580.0,94579.0,0.08075874]